bitfinex/quotes_BTCUSD_20250428
["timestamp","ask_amount","ask_price","bid_price","bid_amount"]
[1745800098241,0.3406886,93623.0,93622.0,0.7038972]
[1745800099120,0.3406886,93623.0,93622.0,0.71843805]
[1745800115868,0.0006886,93623.0,93622.0,0.71843805]
[1745800118097,0.0006886,93623.0,93622.0,0.76733805]
[1745800118346,0.0008486,93627.0,93622.0,0.76733805]
[1745800118347,0.00066813,93627.0,93625.0,0.01454085]
[1745800118560,0.00066813,93627.0,93626.0,0.12143099]
[1745800118761,0.00066813,93627.0,93626.0,0.21353099]
[1745800118972,0.0008474,93632.0,93631.0,0.01554085]
[1745800119172,0.0008474,93632.0,93631.0,0.16783099]
[1745800119173,0.00098543,93632.0,93631.0,0.16783099]
[1745800119410,0.0008498,93650.0,93634.0,0.01454085]
[1745800119658,0.0008498,93650.0,93636.0,0.12143099]
[1745800120284,0.0008478,93643.0,93636.0,0.12143099]
[1745800121691,0.0008478,93643.0,93636.0,0.12243099]
[1745800121897,0.0008478,93643.0,93636.0,0.12143099]
[1745800122099,0.0008478,93643.0,93636.0,0.12443099]
[1745800122310,0.0008478,93643.0,93636.0,0.14765851]
[1745800122838,0.0008478,93643.0,93636.0,0.15065851]
[1745800124898,0.0008478,93643.0,93636.0,0.23157014]
[1745800125966,0.0008478,93643.0,93636.0,0.22857014]
[1745800126188,0.0008478,93643.0,93636.0,0.23057014]
[1745800126616,0.0008478,93643.0,93636.0,0.22757014]
[1745800127047,0.0008478,93643.0,93636.0,0.22957014]
[1745800127288,0.0008478,93643.0,93636.0,0.25252715]
[1745800127830,0.2119288,93637.0,93636.0,0.52080154]
[1745800128032,1.2852218,93637.0,93636.0,0.52080154]
[1745800128262,1.1363568,93637.0,93636.0,0.63948154]
[1745800128472,0.5688238,93637.0,93636.0,0.63948154]
[1745800128828,0.5477248,93637.0,93636.0,0.63948154]
[1745800129029,0.5477248,93637.0,93636.0,0.63748154]
[1745800129157,0.5477248,93637.0,93636.0,0.65871867]
[1745800129607,0.5477248,93637.0,93636.0,0.65671867]
[1745800129805,0.5477248,93637.0,93636.0,0.63648154]
[1745800130012,0.5477248,93637.0,93636.0,0.63748154]
[1745800130591,0.5477248,93637.0,93636.0,0.63848154]
[1745800130798,0.5477248,93637.0,93636.0,0.64048154]
[1745800131576,0.89309767,93637.0,93636.0,0.52180154]
[1745800131781,0.89309767,93637.0,93636.0,0.63848154]
[1745800132185,0.89309767,93637.0,93636.0,0.63948154]
[1745800132645,0.89309767,93637.0,93636.0,0.63648154]
[1745800132921,0.89309767,93637.0,93636.0,0.70042969]
[1745800133102,0.89309767,93637.0,93636.0,0.58174969]
[1745800133269,0.39362167,93637.0,93636.0,0.70042969]
[1745800133473,0.39362167,93637.0,93636.0,0.70046969]
[1745800133688,1.19125267,93637.0,93636.0,0.69946969]
[1745800133891,1.19523267,93637.0,93636.0,0.58174969]
[1745800134122,1.19523267,93637.0,93636.0,0.70046969]
[1745800134314,1.19523267,93637.0,93636.0,0.69946969]
[1745800135320,1.1424598,93637.0,93636.0,0.69946969]
[1745800135522,0.47024067,93637.0,93636.0,0.69946969]
[1745800136280,0.0008488,93637.0,93636.0,0.69946969]
[1745800142841,0.0008488,93637.0,93636.0,0.63552154]
[1745800145897,1.4476768,93637.0,93636.0,0.63552154]
[1745800146112,1.4187448,93637.0,93636.0,0.63552154]
[1745800146317,1.0448068,93637.0,93636.0,0.63552154]
[1745800147169,0.3890488,93637.0,93636.0,0.63552154]
[1745800147460,1.2387368,93637.0,93636.0,0.63552154]
[1745800148576,1.2387368,93637.0,93636.0,0.63536154]
[1745800150665,1.2387368,93637.0,93636.0,0.51680154]
[1745800150837,1.2849368,93637.0,93636.0,0.63536154]
[1745800157835,0.5896418,93637.0,93636.0,0.63536154]
[1745800158045,0.3408488,93637.0,93636.0,0.69889769]
[1745800158256,0.0008488,93637.0,93636.0,0.71343854]
[1745800158841,0.0008488,93637.0,93636.0,0.71347854]
[1745800160456,0.0008488,93637.0,93636.0,0.71547854]
[1745800161043,0.0008488,93637.0,93636.0,0.70093769]
[1745800161479,0.0008488,93637.0,93636.0,0.70293769]
[1745800170942,0.0008488,93637.0,93636.0,0.63940154]
[1745800171167,0.0008488,93637.0,93636.0,0.52080154]
[1745800171389,3.05600856,93637.0,93636.0,0.4139114]
[1745800171583,3.05333867,93637.0,93636.0,0.12256]
[1745800171761,3.08110324,93637.0,93636.0,0.12256]
[1745800172078,3.08110324,93637.0,93636.0,0.002]
[1745800172290,3.08210324,93637.0,93636.0,0.11856]
[1745800174295,3.05433867,93637.0,93636.0,0.11856]
[1745800175151,3.05433867,93637.0,93624.0,0.4099114]
[1745800175340,0.34722167,93637.0,93636.0,0.11856]
[1745800175881,4.19475267,93637.0,93636.0,0.11856]
[1745800176083,2.42553967,93637.0,93636.0,0.11856]
[1745800176319,2.35058067,93637.0,93636.0,0.11856]
[1745800176905,0.34722167,93637.0,93636.0,0.11856]
[1745800177319,0.4679108,93637.0,93636.0,0.23730614]
[1745800177532,0.0018488,93637.0,93636.0,0.23730614]
[1745800180530,0.0018488,93637.0,93636.0,0.64721754]
[1745800180737,0.0018488,93637.0,93636.0,0.63536154]
[1745800182972,0.0018488,93637.0,93636.0,0.63518107]
[1745800184538,0.0018488,93637.0,93636.0,0.63520154]
[1745800186429,0.0018488,93637.0,93636.0,0.63620154]
[1745800186691,0.0018488,93637.0,93636.0,0.63720154]
[1745800187389,0.0018488,93637.0,93636.0,0.69992169]
[1745800187708,0.0018488,93637.0,93636.0,0.70292169]
[1745800187897,0.0018488,93637.0,93636.0,0.63820154]
[1745800188228,0.0018488,93637.0,93636.0,0.64116154]
[1745800190289,0.0018488,93637.0,93636.0,0.70480239]
[1745800190723,0.0008478,93643.0,93641.0,0.01454085]
[1745800190925,0.00089378,93643.0,93642.0,0.19796043]
[1745800191582,0.00089378,93643.0,93642.0,0.31632043]
[1745800193020,0.00089378,93643.0,93642.0,0.31932043]
[1745800193226,0.00089378,93643.0,93642.0,0.32132043]
[1745800193643,0.00089378,93643.0,93642.0,0.37082043]
[1745800197339,0.0008498,93650.0,93646.0,0.42170967]
[1745800197517,0.0008498,93650.0,93646.0,0.60639873]
[1745800199237,0.0008498,93650.0,93647.0,0.01454085]
[1745800199450,0.0008498,93650.0,93648.0,0.12143099]
[1745800199823,0.0008498,93650.0,93649.0,0.01454085]
[1745800200052,0.0008482,93661.0,93649.0,0.12143099]
[1745800200184,0.0008482,93661.0,93653.0,0.12143099]
[1745800200597,0.0008482,93661.0,93653.0,0.16783099]
[1745800201247,0.0008482,93661.0,93653.0,0.23979099]
[1745800201412,0.0008482,93661.0,93653.0,0.12143099]
[1745800201760,0.0008482,93661.0,93653.0,0.24479099]
[1745800201938,0.0008482,93661.0,93653.0,0.19980723]
[1745800202096,0.0008482,93661.0,93653.0,0.31816723]
[1745800202298,0.0008482,93661.0,93653.0,0.23979099]
[1745800202512,0.0008482,93661.0,93653.0,0.23125014]
[1745800202723,0.0008482,93661.0,93653.0,0.22725014]
[1745800202932,0.0008482,93661.0,93653.0,0.23225014]
[1745800203776,0.0008482,93661.0,93653.0,0.22725014]
[1745800203990,0.0008482,93661.0,93653.0,0.69786086]
[1745800204191,0.0008482,93661.0,93653.0,0.69986086]
[1745800204401,0.00075442,93654.0,93653.0,0.69986086]
[1745800204655,0.00075442,93654.0,93653.0,0.69786086]
[1745800204862,0.00075442,93654.0,93653.0,0.69886086]
[1745800205406,0.00075442,93654.0,93653.0,0.69586086]
[1745800205592,0.00075442,93654.0,93653.0,0.70186086]
[1745800205792,0.00075442,93654.0,93653.0,0.67007318]
[1745800208315,0.00075442,93654.0,93653.0,0.68461403]
[1745800209250,0.00075442,93654.0,93653.0,0.62117213]
[1745800219537,0.00075442,93654.0,93653.0,0.66817213]
[1745800221704,0.0008482,93661.0,93660.0,0.41841105]
[1745800221908,0.0008482,93661.0,93660.0,0.52530119]
[1745800223557,0.0008482,93661.0,93660.0,0.52630119]
[1745800223854,0.0008482,93661.0,93660.0,0.59546731]
[1745800224302,0.0008482,93661.0,93660.0,0.59746731]
[1745800224514,0.0008482,93661.0,93660.0,0.71554731]
[1745800226931,0.0008482,93661.0,93660.0,0.59746731]
[1745800227132,0.0008482,93661.0,93660.0,0.63184034]
[1745800227548,0.0008482,93661.0,93660.0,0.64638119]
[1745800227963,0.0004241,93675.0,93661.0,0.41756285]
[1745800228191,0.00411297,93669.0,93668.0,0.12143099]
[1745800228404,0.0004241,93675.0,93672.0,0.01454085]
[1745800228611,0.0004241,93675.0,93674.0,0.12143099]
[1745800229890,0.0004241,93675.0,93674.0,0.23951099]
[1745800230092,0.0004241,93675.0,93674.0,0.12143099]
[1745800230286,0.0004241,93675.0,93674.0,0.24151099]
[1745800230439,0.0004241,93675.0,93674.0,0.27191684]
[1745800231618,0.0004241,93675.0,93674.0,0.27591684]
[1745800233095,0.0475243,93692.0,93674.0,0.27591684]
[1745800233096,0.0024243,93692.0,93679.0,0.001]
[1745800233334,0.0024243,93692.0,93674.0,0.32461684]
[1745800233335,0.00537287,93708.0,93697.0,0.01454085]
[1745800233548,0.0008842,93699.0,93698.0,0.22497014]
[1745800233749,0.0008842,93699.0,93698.0,0.68471198]
[1745800233955,0.8362562,93699.0,93698.0,0.69925283]
[1745800234158,0.3178592,93699.0,93698.0,0.58117283]
[1745800234364,0.3178592,93699.0,93698.0,0.69925283]
[1745800234779,0.3178592,93699.0,93698.0,0.70025283]
[1745800235392,0.71173207,93699.0,93698.0,0.50406354]
[1745800235600,0.71173207,93699.0,93698.0,0.5152534]
[1745800236308,0.71173207,93699.0,93698.0,0.001]
[1745800236517,0.00537287,93683.0,93680.0,0.3961734]
[1745800236684,0.6111592,93699.0,93680.0,0.3961734]
[1745800236685,0.39397287,93681.0,93680.0,0.3961734]
[1745800236844,4.90626287,93681.0,93680.0,0.5142534]
[1745800237046,4.90626287,93681.0,93680.0,0.11808]
[1745800237249,4.87551987,93681.0,93680.0,0.11808]
[1745800237457,2.96180587,93681.0,93680.0,0.11808]
[1745800237656,2.71248087,93681.0,93680.0,0.11808]
[1745800238193,2.71248087,93681.0,93679.0,0.11808]
[1745800238395,0.34,93679.0,93660.0,0.3961734]
[1745800238600,0.34,93677.0,93661.0,0.2974329]
[1745800238803,0.00537287,93662.0,93661.0,0.2974329]
[1745800239128,1.06371187,93662.0,93661.0,0.2974329]
[1745800239392,0.90084887,93662.0,93661.0,0.2974329]
[1745800239596,0.94634887,93662.0,93661.0,0.22497014]
[1745800239779,0.34,93661.0,93660.0,0.3961734]
[1745800239980,5.18333987,93661.0,93660.0,0.11808]
[1745800240185,4.81546287,93661.0,93660.0,0.11808]
[1745800240402,4.68625987,93661.0,93660.0,0.11808]
[1745800241186,3.58713487,93661.0,93660.0,0.11808]
[1745800241841,3.58713487,93661.0,93659.0,0.32044]
[1745800241842,0.00537287,93660.0,93659.0,0.32044]
[1745800241958,0.34804239,93660.0,93659.0,0.32044]
[1745800242159,5.34537287,93660.0,93659.0,0.32044]
[1745800242365,1.112549,93660.0,93659.0,0.32044]
[1745800242571,0.546006,93660.0,93659.0,0.364364]
[1745800242787,0.518999,93660.0,93659.0,0.47125414]
[1745800243009,0.108699,93660.0,93659.0,0.47125414]
[1745800243225,0.101499,93661.0,93659.0,0.47125414]
[1745800243439,0.101709,93661.0,93660.0,0.51760439]
[1745800243674,8.835e-05,93662.0,93661.0,0.01454085]
[1745800243885,8.835e-05,93662.0,93661.0,0.23923099]
[1745800244097,8.835e-05,93662.0,93661.0,0.63540439]
[1745800244731,8.835e-05,93662.0,93661.0,0.63740439]
[1745800244937,8.835e-05,93662.0,93661.0,0.63540439]
[1745800245145,8.835e-05,93662.0,93661.0,0.73511235]
[1745800245353,8.835e-05,93662.0,93661.0,0.73811235]
[1745800245778,0.0977,93705.0,93661.0,0.34193895]
[1745800245984,0.0977,93705.0,93680.0,0.01454085]
[1745800245985,0.1900377,93690.0,93680.0,0.01454085]
[1745800246196,0.34,93689.0,93682.0,0.01454085]
[1745800246404,0.34,93689.0,93683.0,0.10689014]
[1745800247039,0.00537287,93686.0,93683.0,0.10689014]
[1745800247284,0.1900377,93690.0,93686.0,0.01454085]
[1745800247500,0.1900377,93690.0,93689.0,0.12143099]
[1745800247712,0.00045985,93691.0,93690.0,0.01454085]
[1745800247976,0.00045985,93691.0,93690.0,0.12143099]
[1745800248222,0.82571285,93691.0,93690.0,0.10689014]
[1745800248606,0.19947372,93691.0,93690.0,0.22469014]
[1745800248807,0.00537287,93686.0,93660.0,0.00811956]
[1745800248965,1.19431369,93685.0,93683.0,0.002]
[1745800249164,0.00537287,93686.0,93684.0,0.10689014]
[1745800249360,0.00537287,93686.0,93685.0,0.1178]
[1745800249575,0.00537287,93686.0,93685.0,0.22469014]
[1745800250111,0.00537287,93686.0,93685.0,0.10689014]
[1745800250280,0.00537287,93686.0,93685.0,0.22469014]
[1745800250485,0.97601787,93686.0,93685.0,0.22469014]
[1745800251142,0.97601787,93686.0,93685.0,0.24725915]
[1745800251143,0.102321,93686.0,93685.0,0.24725915]
[1745800251343,0.00537287,93686.0,93685.0,0.24725915]
[1745800251550,0.00045985,93691.0,93685.0,0.24725915]
[1745800251762,0.234222,93690.0,93686.0,0.10689014]
[1745800251994,0.234222,93690.0,93686.0,0.13171605]
[1745800252195,0.234222,93690.0,93686.0,0.10689014]
[1745800252601,0.171062,93690.0,93686.0,0.10689014]
[1745800252779,0.00145985,93691.0,93686.0,0.10689014]
[1745800253086,0.280414,93690.0,93686.0,0.10689014]
[1745800253829,0.280414,93690.0,93687.0,0.39608505]
[1745800254054,0.280414,93690.0,93688.0,0.10689014]
[1745800258119,0.142941,93690.0,93688.0,0.10689014]
[1745800258281,0.00045985,93691.0,93688.0,0.10689014]
[1745800259578,0.00145985,93691.0,93688.0,0.1697548]
[1745800259774,0.00145985,93691.0,93689.0,0.39608505]
[1745800260000,0.00145985,93691.0,93690.0,0.10689014]
[1745800260610,0.16709485,93691.0,93690.0,0.10689014]
[1745800260807,0.16150985,93691.0,93690.0,0.10689014]
[1745800261011,0.00045985,93691.0,93690.0,0.10689014]
[1745800261249,0.00145985,93691.0,93690.0,0.10689014]
[1745800261466,0.00145985,93691.0,93690.0,0.18350851]
[1745800261877,0.00045985,93691.0,93690.0,0.57959356]
[1745800262563,0.00145985,93691.0,93690.0,0.57959356]
[1745800264071,0.00145985,93691.0,93690.0,0.51751604]
[1745800264228,0.00045985,93691.0,93690.0,0.51951604]
[1745800264433,0.00045985,93691.0,93690.0,0.52051604]
[1745800267429,0.00045985,93691.0,93690.0,0.63831604]
[1745800270480,0.00045985,93691.0,93690.0,0.52051604]
[1745800270701,0.00045985,93691.0,93690.0,0.63831604]
[1745800271105,0.00045985,93691.0,93690.0,0.52051604]
[1745800271342,0.00045985,93691.0,93690.0,0.63831604]
[1745800271870,0.00045985,93691.0,93690.0,0.63803604]
[1745800282713,0.00045985,93691.0,93690.0,0.52051604]
[1745800282914,0.00045985,93691.0,93690.0,0.63803604]
[1745800283171,0.00045985,93691.0,93690.0,0.70183964]
[1745800283978,0.00045985,93691.0,93690.0,0.74873964]
[1745800284748,0.0004243,93699.0,93690.0,0.74873964]
[1745800284749,0.0004243,93699.0,93695.0,0.01454085]
[1745800284961,0.00051265,93699.0,93698.0,0.12143099]
[1745800285225,0.0008482,93715.0,93701.0,0.01454085]
[1745800285476,0.0008482,93715.0,93708.0,0.12143099]
[1745800285686,0.0008482,93715.0,93708.0,0.21773099]
[1745800285846,0.0008482,93715.0,93709.0,0.01454085]
[1745800286042,0.0008482,93715.0,93712.0,0.12143099]
[1745800286593,0.0008482,93715.0,93712.0,0.14143233]
[1745800286727,0.0008482,93715.0,93712.0,0.17705756]
[1745800286936,0.0024933,93729.0,93713.0,0.01454085]
[1745800287320,0.00258163,93729.0,93728.0,0.12143099]
[1745800288652,0.00258163,93729.0,93728.0,0.10689014]
[1745800288906,0.00258163,93729.0,93713.0,0.39361076]
[1745800289100,0.00258163,93729.0,93714.0,0.06595001]
[1745800289507,0.00358163,93729.0,93714.0,0.06595001]
[1745800289961,0.00258163,93729.0,93714.0,0.06595001]
[1745800290135,0.002,93742.0,93714.0,0.06595001]
[1745800290136,0.002,93742.0,93739.0,0.39318666]
[1745800290334,0.002,93742.0,93741.0,0.03171539]
[1745800290578,0.002,93742.0,93741.0,0.51117626]
[1745800290778,0.002,93742.0,93741.0,0.52571711]
[1745800291099,0.002,93742.0,93741.0,0.4394429]
[1745800291217,0.002,93742.0,93741.0,0.5569629]
[1745800291620,0.002,93742.0,93741.0,0.5579629]
[1745800292900,0.004,93742.0,93741.0,0.5579629]
[1745800293067,0.004,93742.0,93741.0,0.16477624]
[1745800293240,0.004,93742.0,93741.0,0.21328586]
[1745800293241,0.002,93742.0,93741.0,0.21328586]
[1745800293462,0.002,93742.0,93741.0,0.09576586]
[1745800293665,0.002,93742.0,93741.0,0.21324586]
[1745800294265,0.002,93742.0,93741.0,0.09576586]
[1745800294464,0.002,93742.0,93741.0,0.21224586]
[1745800294783,0.002,93742.0,93741.0,0.21724586]
[1745800294989,0.002,93742.0,93741.0,0.21424586]
[1745800295151,0.002,93742.0,93741.0,0.21824586]
[1745800295973,0.002,93742.0,93741.0,0.21624586]
[1745800296168,0.002,93742.0,93741.0,0.21924586]
[1745800296373,0.004,93749.0,93742.0,0.39916798]
[1745800296573,0.004,93749.0,93747.0,0.12143099]
[1745800296817,0.004,93749.0,93747.0,0.23891099]
[1745800297598,0.004,93749.0,93747.0,0.12143099]
[1745800297805,0.004,93749.0,93747.0,0.10689014]
[1745800298006,0.004,93749.0,93747.0,0.22937014]
[1745800298208,0.004,93749.0,93747.0,0.25350398]
[1745800298689,0.004,93749.0,93747.0,0.26804483]
[1745800298888,0.004,93749.0,93747.0,0.26304483]
[1745800299088,0.004,93749.0,93747.0,0.26604483]
[1745800299793,0.004,93749.0,93747.0,0.27004483]
[1745800300825,0.004,93749.0,93747.0,0.31574483]
[1745800301320,0.004,93749.0,93747.0,0.32074483]
[1745800301536,0.004,93749.0,93747.0,0.15356483]
[1745800301896,0.004,93749.0,93747.0,0.27104483]
[1745800302517,0.004,93749.0,93747.0,0.11489014]
[1745800302698,0.8280063,93748.0,93747.0,0.11489014]
[1745800302903,0.6690473,93748.0,93747.0,0.23213014]
[1745800303148,0.2061673,93748.0,93747.0,0.23213014]
[1745800303350,0.2061673,93748.0,93747.0,0.22913014]
[1745800303718,0.2061673,93748.0,93747.0,0.23013014]
[1745800303919,0.2061673,93748.0,93747.0,0.22513014]
[1745800304126,0.2061673,93748.0,93747.0,0.22813014]
[1745800304965,0.2061673,93748.0,93747.0,0.25073998]
[1745800305164,0.1070643,93748.0,93747.0,0.13349998]
[1745800305506,0.1070643,93748.0,93747.0,0.22813014]
[1745800305889,0.1070643,93748.0,93747.0,0.22713014]
[1745800306299,0.1070643,93748.0,93747.0,0.22813014]
[1745800306691,0.0004243,93748.0,93747.0,0.24167099]
[1745800306895,0.0004243,93748.0,93747.0,0.23867099]
[1745800307098,0.0004243,93748.0,93747.0,0.27288307]
[1745800307275,0.0004243,93748.0,93747.0,0.27588307]
[1745800308113,0.0004243,93748.0,93747.0,0.66906973]
[1745800309092,0.0004243,93748.0,93747.0,0.66806973]
[1745800309576,0.0004243,93748.0,93747.0,0.67106973]
[1745800309895,0.0004243,93748.0,93747.0,0.66806973]
[1745800310315,0.0004243,93748.0,93747.0,0.67306973]
[1745800313708,0.0004243,93748.0,93747.0,0.55582973]
[1745800313845,0.0004243,93748.0,93747.0,0.67302973]
[1745800314655,0.0004243,93748.0,93747.0,0.66802973]
[1745800314894,0.0004243,93748.0,93747.0,0.67102973]
[1745800315267,0.0004243,93748.0,93747.0,0.67502973]
[1745800318445,0.0004243,93748.0,93747.0,0.24863099]
[1745800318807,0.0004243,93748.0,93747.0,0.23409014]
[1745800319060,0.0004243,93748.0,93747.0,0.11689014]
[1745800319297,0.0004243,93748.0,93747.0,0.23409014]
[1745800319542,0.0004243,93748.0,93747.0,0.11289014]
[1745800319765,0.0004243,93748.0,93747.0,0.10989014]
[1745800319997,0.0004243,93748.0,93747.0,0.23209014]
[1745800321053,0.0004243,93748.0,93747.0,0.22909014]
[1745800321232,0.0004243,93748.0,93747.0,0.22409014]
[1745800321433,0.0004243,93748.0,93747.0,0.10989014]
[1745800321595,0.7103693,93748.0,93747.0,0.22709014]
[1745800321792,0.3002773,93748.0,93747.0,0.22409014]
[1745800322217,0.3002773,93748.0,93747.0,0.22609014]
[1745800322455,0.1895573,93748.0,93747.0,0.22609014]
[1745800322772,0.1504813,93748.0,93747.0,0.23009014]
[1745800322893,0.1399563,93748.0,93747.0,0.23009014]
[1745800323097,0.1399563,93748.0,93747.0,0.22409014]
[1745800323304,0.1399563,93748.0,93747.0,0.24929598]
[1745800323503,0.0004243,93748.0,93747.0,0.24929598]
[1745800323915,0.0004243,93748.0,93747.0,0.26383683]
[1745800325129,0.0004243,93748.0,93747.0,0.22709014]
[1745800329394,0.7787433,93748.0,93747.0,0.22709014]
[1745800330207,0.4567703,93748.0,93747.0,0.6202768]
[1745800330430,0.0004243,93748.0,93747.0,0.6202768]
[1745800330844,0.0004243,93748.0,93747.0,0.63481765]
[1745800331047,0.0004243,93748.0,93747.0,0.70408624]
[1745800332133,0.0004243,93748.0,93747.0,0.70308624]
[1745800332525,0.0004243,93748.0,93747.0,0.70408624]
[1745800332933,0.0004243,93748.0,93747.0,0.70908624]
[1745800333059,0.0004243,93748.0,93747.0,0.70408624]
[1745800333508,0.0004243,93748.0,93747.0,0.70908624]
[1745800333868,0.0004243,93748.0,93747.0,0.70608624]
[1745800334074,0.0004243,93748.0,93747.0,0.70908624]
[1745800336775,0.0004243,93748.0,93747.0,0.63981765]
[1745800336949,0.0004243,93748.0,93747.0,0.63961765]
[1745800337522,0.0004243,93748.0,93747.0,0.63661765]
[1745800337742,0.0004243,93748.0,93747.0,0.51961765]
[1745800337871,0.004,93749.0,93747.0,0.51961765]
[1745800337872,0.004,93749.0,93748.0,0.40730321]
[1745800338077,0.004,93749.0,93748.0,0.58383951]
[1745800338290,0.004,93749.0,93748.0,0.70083951]
[1745800340101,0.004,93749.0,93748.0,0.70683951]
[1745800340349,0.0004243,93755.0,93753.0,0.01454085]
[1745800340579,0.0004243,93755.0,93754.0,0.50783099]
[1745800340799,0.0004243,93755.0,93754.0,0.61472113]
[1745800341000,0.0004243,93780.0,93755.0,0.35454085]
[1745800341254,0.0004243,93780.0,93766.0,0.76952792]
[1745800341255,0.00056206,93767.0,93766.0,0.76952792]
[1745800341498,0.00056206,93767.0,93766.0,0.55723099]
[1745800341651,0.002,93792.0,93766.0,0.55723099]
[1745800341652,0.002,93792.0,93774.0,0.01454085]
[1745800341883,0.002,93792.0,93771.0,0.0552914]
[1745800341884,0.1900377,93810.0,93792.0,0.01454085]
[1745800342082,0.1900377,93810.0,93803.0,0.01454085]
[1745800342280,0.00088385,93807.0,93805.0,0.01454085]
[1745800342528,0.00088385,93807.0,93806.0,0.12143099]
[1745800342730,0.00088385,93807.0,93806.0,0.53803645]
[1745800344167,0.00088385,93807.0,93806.0,0.4996525]
[1745800345293,0.00088385,93807.0,93806.0,0.51419335]
[1745800347426,0.00088385,93807.0,93806.0,0.52219564]
[1745800348972,0.00088385,93807.0,93806.0,0.55131533]
[1745800349971,0.00088385,93807.0,93806.0,0.55231533]
[1745800350181,0.00088385,93807.0,93806.0,0.62196149]
[1745800350326,0.00088385,93807.0,93806.0,0.62396149]
[1745800350730,0.00088385,93807.0,93806.0,0.62596149]
[1745800351186,0.00088385,93807.0,93806.0,0.5968418]
[1745800351610,0.00088385,93807.0,93806.0,0.62957479]
[1745800351794,0.00088385,93807.0,93806.0,0.51265479]
[1745800351998,0.00088385,93807.0,93806.0,0.62957479]
[1745800352743,0.00088385,93807.0,93806.0,0.62657479]
[1745800353394,0.00625672,93807.0,93806.0,0.50865479]
[1745800353776,0.00625672,93807.0,93806.0,0.6175725]
[1745800353777,0.42475672,93807.0,93806.0,0.6175725]
[1745800353987,0.53619372,93807.0,93806.0,0.6165725]
[1745800354210,0.50141472,93807.0,93806.0,0.18257725]
[1745800354428,0.50141472,93807.0,93806.0,0.12092]
[1745800354835,0.50141472,93807.0,93806.0,0.11992]
[1745800355044,0.84141472,93807.0,93806.0,0.003]
[1745800355244,0.84141472,93807.0,93806.0,0.11992]
[1745800355443,0.93181472,93807.0,93806.0,0.11692]
[1745800355781,0.93181472,93807.0,93806.0,0.11792]
[1745800356631,0.93181472,93807.0,93806.0,0.11692]
[1745800356807,0.93181472,93807.0,93793.0,0.32016]
[1745800357016,0.34,93802.0,93794.0,0.11692]
[1745800357210,0.00266554,93801.0,93794.0,0.11692]
[1745800357396,0.00537287,93795.0,93794.0,0.11692]
[1745800357596,1.03859187,93795.0,93793.0,0.32016]
[1745800357839,0.1900377,93803.0,93793.0,0.32016]
[1745800357840,1.37614343,93794.0,93793.0,0.32016]
[1745800358035,2.80374187,93794.0,93793.0,0.32016]
[1745800358240,2.88714287,93794.0,93793.0,0.43708]
[1745800360917,2.99403301,93794.0,93793.0,0.38708]
[1745800361149,2.99403301,93794.0,93770.0,0.39276236]
[1745800361150,0.00537287,93771.0,93770.0,0.39276236]
[1745800361376,0.89029687,93771.0,93770.0,0.11692]
[1745800361622,0.93066687,93771.0,93770.0,0.11692]
[1745800362316,0.52812987,93771.0,93770.0,0.22381014]
[1745800362541,0.63588687,93771.0,93770.0,0.22381014]
[1745800362986,0.51582187,93771.0,93770.0,0.22581014]
[1745800363664,0.51582187,93771.0,93770.0,0.11892]
[1745800364878,0.51582187,93771.0,93770.0,0.12078214]
[1745800365141,0.51582187,93771.0,93770.0,0.11868]
[1745800366862,0.53564191,93771.0,93770.0,0.11868]
[1745800368288,0.58534191,93771.0,93770.0,0.11868]
[1745800368953,0.63044191,93771.0,93770.0,0.11868]
[1745800369393,0.63044191,93771.0,93770.0,0.002]
[1745800369614,0.34,93770.0,93762.0,0.11672]
[1745800369827,0.00266658,93769.0,93762.0,0.11672]
[1745800370054,0.34,93767.0,93762.0,0.11672]
[1745800370278,0.34,93765.0,93762.0,0.11672]
[1745800370492,0.34537287,93763.0,93762.0,0.11672]
[1745800370706,4.32263491,93763.0,93762.0,0.11672]
[1745800370939,4.28177091,93763.0,93762.0,0.11672]
[1745800371785,4.14220091,93763.0,93762.0,0.11672]
[1745800372001,3.33611891,93763.0,93762.0,0.11672]
[1745800372235,3.29411891,93763.0,93762.0,0.11672]
[1745800375802,1.63482991,93763.0,93762.0,0.11672]
[1745800376648,1.61500987,93763.0,93762.0,0.11672]
[1745800376838,1.51540887,93763.0,93762.0,0.11672]
[1745800377718,0.56133687,93763.0,93762.0,0.1604808]
[1745800378158,0.56133687,93763.0,93762.0,0.11672]
[1745800378504,1.08703587,93763.0,93762.0,0.11672]
[1745800378727,1.34990987,93763.0,93762.0,0.11672]
[1745800379312,0.54505287,93763.0,93762.0,0.11672]
[1745800379524,0.52355087,93763.0,93762.0,0.11672]
[1745800379758,0.34537287,93763.0,93762.0,0.26737094]
[1745800379908,0.34537287,93763.0,93762.0,0.22361014]
[1745800380315,0.34,93763.0,93762.0,0.22361014]
[1745800380515,0.34537287,93763.0,93762.0,0.22361014]
[1745800380748,0.34,93763.0,93762.0,0.22361014]
[1745800380923,0.34537287,93763.0,93762.0,0.22361014]
[1745800381145,0.52509687,93763.0,93762.0,0.22361014]
[1745800381346,0.52509687,93763.0,93762.0,0.11672]
[1745800382966,0.34537287,93763.0,93762.0,0.11672]
[1745800383145,2.23926187,93763.0,93762.0,0.11672]
[1745800383371,2.23186898,93763.0,93762.0,0.11672]
[1745800384266,1.87917298,93763.0,93762.0,0.11672]
[1745800385094,1.85931987,93763.0,93762.0,0.11672]
[1745800387009,1.8792177,93763.0,93762.0,0.11672]
[1745800387722,1.5258217,93763.0,93762.0,0.11672]
[1745800388290,1.4998927,93763.0,93762.0,0.11672]
[1745800388490,1.4058487,93763.0,93762.0,0.11672]
[1745800388758,0.00537287,93756.0,93755.0,0.000848]
[1745800388955,0.00537287,93756.0,93755.0,0.224596]
[1745800389184,0.00537287,93756.0,93755.0,0.11770586]
[1745800389368,0.00803957,93756.0,93755.0,0.11770586]
[1745800389567,0.7135684,93756.0,93755.0,0.11770586]
[1745800389713,0.7109017,93756.0,93755.0,0.11770586]
[1745800389913,0.6800537,93756.0,93755.0,0.11770586]
[1745800390957,0.6800537,93756.0,93755.0,0.11870586]
[1745800391834,0.66015587,93756.0,93755.0,0.11870586]
[1745800392792,0.68007898,93756.0,93755.0,0.11870586]
[1745800393238,1.02007898,93756.0,93755.0,0.11870586]
[1745800393429,1.02007898,93756.0,93755.0,0.00198586]
[1745800394581,1.35888798,93756.0,93755.0,0.00198586]
[1745800394825,1.31606498,93756.0,93755.0,0.00198586]
[1745800395150,1.31606498,93756.0,93755.0,0.00098586]
[1745800395355,1.31706498,93756.0,93755.0,0.00098586]
[1745800395773,1.34541798,93756.0,93755.0,0.00098586]
[1745800396099,1.32549487,93756.0,93755.0,0.00098586]
[1745800396892,1.34543466,93756.0,93755.0,0.00098586]
[1745800397571,0.63176766,93756.0,93755.0,0.00098586]
[1745800397743,0.61182787,93756.0,93755.0,0.00098586]
[1745800398748,0.63177766,93756.0,93755.0,0.00098586]
[1745800400162,0.0004242,93823.0,93764.0,0.0955]